lending/lending_fUSD_20240507
["ID","MTS","AMOUNT","RATE_DAILY","PERIOD"]
[326553590,1715105600597,-1252.57,0.00021095,2]
[326553591,1715105600607,-500.0,0.00021095,2]
[326553592,1715105600617,-665.98,0.00021095,2]
[326553593,1715105600627,-6014.47,0.00021095,2]
[326553594,1715105600637,-500.0,0.00021095,2]
[326553595,1715105600647,-1013.84,0.00021095,2]
[326553596,1715105600657,-150.0,0.00021095,2]
[326553597,1715105600667,-1038.38,0.00021095,2]
[326553598,1715105600678,-500.0,0.00021095,2]
[326553599,1715105600689,-500.0,0.00021095,2]
[326553600,1715105600700,-11885.09,0.00021095,2]
[326553601,1715105600710,-531.24,0.00021095,2]
[326553602,1715105600720,-500.0,0.00021095,2]
[326553603,1715105600730,-519.72,0.00021095,2]
[326553604,1715105600740,-500.0,0.00021095,2]
[326553605,1715105600750,-500.0,0.00021095,2]
[326553606,1715105600760,-500.0,0.00021095,2]
[326553607,1715105600770,-500.0,0.00021095,2]
[326553608,1715105600780,-7456.46,0.00021095,2]
[326553609,1715105600790,-500.0,0.00021095,2]
[326553610,1715105600800,-8356.91,0.00021095,2]
[326553611,1715105600810,-1305.53,0.00021095,2]
[326553612,1715105600820,-785.17,0.00021095,2]
[326553613,1715105600830,-500.0,0.00021095,2]
[326553614,1715105600840,-958.49,0.00021095,2]
[326553615,1715105600852,-762.88,0.00021095,2]
[326553616,1715105600862,-2572.94,0.00021095,2]
[326553617,1715105600871,-500.0,0.00021095,2]
[326553618,1715105600881,-790.81,0.00021095,2]
[326553619,1715105600891,-513.88,0.00021095,2]
[326553620,1715105600902,-896.68,0.00021095,2]
[326553621,1715105600912,-500.0,0.00021095,2]
[326553622,1715105600923,-500.0,0.00021095,2]
[326553623,1715105600933,-2589.73,0.00021095,2]
[326553624,1715105600943,-544.84,0.00021095,2]
[326553625,1715105600955,-500.0,0.00021095,2]
[326553626,1715105600965,-500.0,0.00021095,2]
[326553627,1715105600975,-500.0,0.00021095,2]
[326553628,1715105600985,-1985.12,0.00021095,2]
[326553629,1715105600996,-500.0,0.00021095,2]
[326553630,1715105601006,-500.0,0.00021095,2]
[326553631,1715105601017,-1258.11,0.00021095,2]
[326553632,1715105601027,-1700.29,0.00021095,2]
[326553633,1715105601037,-4651.14,0.00021095,2]
[326553634,1715105601047,-500.0,0.00021095,2]
[326553635,1715105601057,-500.0,0.00021095,2]
[326553636,1715105601068,-676.07,0.00021095,2]
[326553637,1715105601078,-959.08,0.00021095,2]
[326553638,1715105601088,-734.9,0.00021095,2]
[326553639,1715105601098,-500.0,0.00021095,2]
[326553640,1715105601110,-500.0,0.00021095,2]
[326553641,1715105601120,-698.7,0.00021095,2]
[326553642,1715105601131,-663.69,0.00021095,2]
[326553643,1715105601142,-660.1,0.00021095,2]
[326553644,1715105601152,-735.96,0.00021095,2]
[326553645,1715105601162,-8060.34,0.00021095,2]
[326553646,1715105601173,-1109.96,0.00021095,2]
[326553647,1715105601183,-2834.12,0.00021095,2]
[326553648,1715105601193,-20091.28,0.00021095,2]
[326553649,1715105601203,-14442.67,0.00021095,2]
[326553650,1715105601213,-1349.78,0.00021095,2]
[326553651,1715105601223,-1229.5,0.00021095,2]
[326553652,1715105601234,-998.22,0.00021095,2]
[326553653,1715105601244,-500.0,0.00021095,2]
[326553654,1715105601254,-657.39,0.00021095,2]
[326553655,1715105601264,-500.0,0.00021095,2]
[326553656,1715105601274,-1555.88,0.00021095,2]
[326553657,1715105601284,-500.0,0.00021095,2]
[326553658,1715105601295,-500.0,0.00021095,2]
[326553659,1715105601305,-733.48,0.00021095,2]
[326553660,1715105601316,-2045.92,0.00021095,2]
[326553661,1715105601326,-2381.36,0.00021095,2]
[326553662,1715105601337,-44695.36,0.00021095,2]
[326553663,1715105601350,-500.0,0.00021095,2]
[326553664,1715105601360,-500.0,0.00021095,2]
[326553665,1715105601370,-500.0,0.00021095,2]
[326553666,1715105601380,-1025.11,0.00021095,2]
[326553667,1715105601389,-500.0,0.00021095,2]
[326553668,1715105601399,-1880.09,0.00021095,2]
[326553669,1715105601409,-1066.97,0.00021095,2]
[326553670,1715105601420,-1387.28,0.00021095,2]
[326553671,1715105601430,-500.0,0.00021095,2]
[326553672,1715105601440,-2096.8,0.00021095,2]
[326553673,1715105601451,-575.88,0.00021095,2]
[326553674,1715105601461,-500.0,0.00021095,2]
[326553675,1715105601471,-2732.08,0.00021095,2]
[326553676,1715105601483,-840.9,0.00021095,2]
[326553677,1715105601493,-1050.6,0.00021095,2]
[326553678,1715105601504,-835.2,0.00021095,2]
[326553679,1715105601518,-3507.75,0.00021095,2]
[326553680,1715105601529,-2837.98,0.00021095,2]
[326553681,1715105601544,-2913.55,0.00021095,2]
[326553682,1715105601555,-500.0,0.00021095,2]
[326553683,1715105601564,-825.96,0.00021095,2]
[326553684,1715105601575,-2404.42,0.00021095,2]
[326553685,1715105601585,-1125.59,0.00021095,2]
[326553686,1715105601595,-500.0,0.00021095,2]
[326553687,1715105601604,-2326.09,0.00021095,2]
[326553688,1715105601616,-500.0,0.00021095,2]
[326553689,1715105601627,-678.75,0.00021095,2]
[326553690,1715105601637,-5312.39,0.00021095,2]
[326553691,1715105601647,-2929.62,0.00021095,2]
[326553692,1715105601657,-500.0,0.00021095,2]
[326553693,1715105601668,-2251.89,0.00021095,2]
[326553694,1715105601677,-500.0,0.00021095,2]
[326553695,1715105601687,-995.1,0.00021095,2]
[326553696,1715105601697,-1422.68,0.00021095,2]
[326553697,1715105601706,-500.0,0.00021095,2]
[326553698,1715105601715,-7636.26,0.00021095,2]
[326553699,1715105601725,-6856.81,0.00021095,2]
[326553700,1715105601735,-4930.24,0.00021095,2]
[326553701,1715105601745,-1988.76,0.00021095,2]
[326553702,1715105601756,-500.0,0.00021095,2]
[326553703,1715105601766,-500.0,0.00021095,2]
[326553704,1715105601776,-1192.04,0.00021095,2]
[326553705,1715105601788,-500.0,0.00021095,2]
[326553706,1715105601799,-2775.11,0.00021095,2]
[326553707,1715105601810,-500.0,0.00021095,2]
[326553708,1715105601820,-1155.41,0.00021095,2]
[326553709,1715105601830,-1157.16,0.00021095,2]
[326553710,1715105601840,-5007.09,0.00021095,2]
[326553711,1715105601852,-790.84,0.00021095,2]
[326553712,1715105601862,-29416.15,0.00021095,2]
[326553713,1715105601872,-500.0,0.00021095,2]
[326553714,1715105601882,-1981.97,0.00021095,2]
[326553715,1715105601892,-500.0,0.00021095,2]
[326553716,1715105601903,-500.0,0.00021095,2]
[326553717,1715105601913,-460.35442307,0.00021095,2]
[326553718,1715105601924,-794.77,0.00021095,2]
[326553719,1715105601934,-500.0,0.00021095,2]
[326553720,1715105602046,-6716.37,0.00021095,2]
[326553721,1715105602058,-500.0,0.00021095,2]
[326553722,1715105602069,-1179.96,0.00021095,2]
[326553723,1715105602080,-500.0,0.00021095,2]
[326553724,1715105602090,-1794.84,0.00021095,2]
[326553725,1715105602104,-10692.6,0.00021095,2]
[326553726,1715105602114,-1100.13,0.00021095,2]
[326553727,1715105602125,-1634.78,0.00021095,2]
[326553728,1715105602135,-715.85,0.00021095,2]
[326553729,1715105602146,-5160.56,0.00021095,2]
[326553730,1715105602156,-1024.0,0.00021095,2]
[326553731,1715105602166,-562.05,0.00021095,2]
[326553732,1715105602177,-4446.43,0.00021095,2]
[326553733,1715105602193,-500.0,0.00021095,2]
[326553734,1715105602204,-500.0,0.00021095,2]
[326553735,1715105602214,-500.0,0.00021095,2]
[326553736,1715105602225,-500.0,0.00021095,2]
[326553737,1715105602235,-719.72,0.00021095,2]
[326553738,1715105602246,-1668.41,0.00021095,2]
[326553739,1715105602257,-2273.27,0.00021095,2]
[326553740,1715105602268,-2897.06,0.00021095,2]
[326553741,1715105602279,-2266.91,0.00021095,2]
[326553742,1715105602290,-591.11,0.00021095,2]
[326553743,1715105602300,-2711.45,0.00021095,2]
[326553744,1715105602311,-2878.06,0.00021095,2]
[326553745,1715105602323,-500.0,0.00021095,2]
[326553746,1715105602334,-2747.7,0.00021095,2]
[326553747,1715105602346,-2730.02,0.00021095,2]
[326553748,1715105602356,-353.48543527,0.00021095,2]
[326553749,1715105602366,-680.44,0.00021095,2]
[326553750,1715105602377,-2730.02,0.00021095,2]
[326553751,1715105602388,-895.93,0.00021095,2]
[326553752,1715105602398,-1652.52,0.00021095,2]
[326553753,1715105602409,-549.07,0.00021095,2]
[326553754,1715105602420,-519.73,0.00021095,2]
[326553755,1715105602431,-500.0,0.00021095,2]
[326553756,1715105602441,-1304.96,0.00021095,2]
[326553757,1715105602452,-1412.02,0.00021095,2]
[326553758,1715105602463,-762.1,0.00021095,2]
[326553759,1715105602474,-3669.89,0.00021095,2]
[326553760,1715105602485,-2436.75,0.00021095,2]
[326553761,1715105602496,-9384.72,0.00021095,2]
[326553762,1715105602508,-171.40622059,0.00021095,2]
[326553763,1715105602525,-500.0,0.00021095,2]
[326553764,1715105602539,-1593.18,0.00021095,2]
[326553765,1715105602550,-727.14,0.00021095,2]
[326553766,1715105602560,-1170.08,0.00021095,2]
[326553767,1715105602571,-1941.14,0.00021095,2]
[326553768,1715105602583,-541.81,0.00021095,2]
[326553769,1715105602596,-618.14,0.00021095,2]
[326553770,1715105602606,-631.46,0.00021095,2]
[326553771,1715105602618,-1921.54,0.00021095,2]
[326553772,1715105602629,-3197.79,0.00021095,2]
[326553773,1715105602639,-3099.44,0.00021095,2]
[326553774,1715105602650,-4560.48,0.00021095,2]
[326553775,1715105602661,-38643.67,0.00021095,2]
[326553776,1715105602672,-594.96,0.00021095,2]
[326553777,1715105602683,-1682.37,0.00021095,2]
[326553778,1715105602693,-1063.33,0.00021095,2]
[326553779,1715105602703,-3698.43,0.00021095,2]
[326553780,1715105602714,-808.36,0.00021095,2]
[326553781,1715105602724,-500.0,0.00021095,2]
[326553782,1715105602734,-500.0,0.00021095,2]
[326553783,1715105602744,-2956.08,0.00021095,2]
[326553784,1715105602755,-528.47,0.00021095,2]
[326553785,1715105602769,-17712.58,0.00021095,2]
[326553786,1715105602781,-3212.42,0.00021095,2]
[326553787,1715105602791,-1075.62,0.00021095,2]
[326553788,1715105602801,-684.43,0.00021095,2]
[326553789,1715105602814,-2995.55,0.00021095,2]
[326553790,1715105602825,-4441.97,0.00021095,2]
[326553791,1715105602836,-502.62,0.00021095,2]
[326553792,1715105602848,-1716.07,0.00021095,2]
[326553793,1715105602858,-8698.62,0.00021095,2]
[326553794,1715105602868,-517.61,0.00021095,2]
[326553795,1715105602880,-7988.89,0.00021095,2]
[326553796,1715105602890,-1169.68,0.00021095,2]
[326553797,1715105602901,-2365.32,0.00021095,2]
[326553798,1715105602912,-500.0,0.00021095,2]
[326553799,1715105602922,-1802.09,0.00021095,2]
[326553800,1715105602933,-747.34,0.00021095,2]
[326553801,1715105602944,-2525.86,0.00021095,2]
[326553802,1715105602954,-672.01,0.00021095,2]
[326553803,1715105602965,-2488.08,0.00021095,2]
[326553804,1715105602975,-500.0,0.00021095,2]
[326553805,1715105602987,-1274.76,0.00021095,2]
[326553806,1715105602999,-2196.88,0.00021095,2]
[326553807,1715105603009,-2680.71,0.00021095,2]
[326553808,1715105603020,-1924.04,0.00021095,2]
[326553809,1715105603031,-3541.95,0.00021095,2]
[326553810,1715105603042,-862.12,0.00021095,2]
[326553811,1715105603054,-1745.92,0.00021095,2]
[326553812,1715105603064,-2146.45,0.00021095,2]
[326553813,1715105603075,-500.0,0.00021095,2]
[326553814,1715105603088,-3103.92,0.00021095,2]
[326553815,1715105603100,-500.0,0.00021095,2]
[326553816,1715105603111,-500.0,0.00021095,2]
[326553817,1715105603121,-756.1,0.00021095,2]
[326553818,1715105603131,-1873.65,0.00021095,2]
[326553819,1715105603142,-1454.37,0.00021095,2]
[326553820,1715105603153,-507.12,0.00021095,2]
[326553821,1715105603163,-1355.89,0.00021095,2]
[326553822,1715105603174,-857.95,0.00021095,2]
[326553823,1715105603184,-3339.3,0.00021095,2]
[326553824,1715105603194,-5966.98,0.00021095,2]
[326553825,1715105603205,-473.4894647,0.00021095,2]
[326553826,1715105603217,-1339.67,0.00021095,2]
[326553827,1715105603228,-638.44,0.00021095,2]
[326553828,1715105603239,-2977.97,0.00021095,2]
[326553829,1715105603250,-2541.93,0.00021095,2]
[326553830,1715105603261,-2330.41,0.00021095,2]
[326553831,1715105603272,-708.04,0.00021095,2]
[326553832,1715105603284,-635.24,0.00021095,2]
[326553833,1715105603295,-602.67,0.00021095,2]
[326553834,1715105603306,-3811.26,0.00021095,2]
[326553835,1715105603317,-500.0,0.00021095,2]
[326553836,1715105603328,-1963.7,0.00021095,2]
[326553837,1715105603339,-1042.73,0.00021095,2]
[326553838,1715105603350,-2861.46,0.00021095,2]
[326553839,1715105603361,-618.46,0.00021095,2]
[326553840,1715105603372,-3883.38,0.00021095,2]
[326553841,1715105603383,-4263.48,0.00021095,2]
[326553842,1715105603394,-2140.87,0.00021095,2]
[326553843,1715105603404,-2547.66,0.00021095,2]
[326553844,1715105603415,-2198.63,0.00021095,2]
[326553845,1715105603426,-709.65,0.00021095,2]
[326553846,1715105603437,-5121.23,0.00021095,2]
[326553847,1715105603447,-3237.33,0.00021095,2]
[326553848,1715105603457,-4095.92,0.00021095,2]
[326553849,1715105603467,-1080.84,0.00021095,2]
[326553850,1715105603477,-3075.75,0.00021095,2]
[326553851,1715105603487,-7176.66,0.00021095,2]
[326553852,1715105603497,-7598.04,0.00021095,2]
[326553853,1715105603507,-823.3,0.00021095,2]
[326553854,1715105603522,-1138.76,0.00021095,2]
[326553855,1715105603533,-1486.57,0.00021095,2]
[326553856,1715105603547,-2761.44,0.00021095,2]
[326553857,1715105603558,-2200.2,0.00021095,2]
[326553858,1715105603569,-152.69162424,0.00021115,2]
[326553859,1715105603581,-782.1,0.000212,2]
[326553860,1715105603591,-902.13,0.00021369,2]
[326553861,1715105603603,-500.0,0.00021369,2]
[326553862,1715105603614,-500.0,0.00021369,2]
[326553863,1715105603624,-500.0,0.00021369,2]
[326553864,1715105603634,-964.26,0.00021369,2]
[326553865,1715105603644,-169.31352695,0.00021369,2]
[326553866,1715105603654,-456.91753951,0.00021369,2]
[326553867,1715105603664,-712.97,0.00021369,2]
[326553868,1715105603676,-500.0,0.00021369,2]
[326553869,1715105603687,-500.0,0.00021369,2]
[326553870,1715105603697,-328.04512045,0.00021369,2]
[326553871,1715105603708,-759.45,0.00021369,2]
[326553872,1715105603718,-500.0,0.00021369,2]
[326553873,1715105603728,-500.0,0.00021369,2]
[326553874,1715105603739,-696.64,0.00021369,2]
[326553875,1715105603749,-500.0,0.00021369,2]
[326553876,1715105603760,-500.0,0.00021369,2]
[326553877,1715105603771,-749.43,0.00021369,2]
[326553878,1715105603781,-992.5,0.00021369,2]
[326553879,1715105603792,-500.0,0.00021369,2]
[326553880,1715105603802,-500.0,0.00021369,2]
[326553881,1715105603813,-500.0,0.00021369,2]
[326553882,1715105603823,-500.0,0.00021369,2]
[326553883,1715105603833,-500.0,0.00021369,2]
[326553884,1715105603844,-500.0,0.00021369,2]
[326553885,1715105603855,-1147.18,0.00021369,2]
[326553886,1715105603865,-500.0,0.00021369,2]
[326553887,1715105603876,-891.13,0.00021369,2]
[326553888,1715105603886,-652.58,0.00021369,2]
[326553889,1715105603897,-714.55,0.00021369,2]
[326553890,1715105603908,-1542.46,0.00021369,2]
[326553891,1715105603918,-590.41,0.00021369,2]
[326553892,1715105603929,-500.0,0.00021369,2]
[326553893,1715105603939,-957.15,0.00021369,2]
[326553894,1715105603950,-500.0,0.00021369,2]
[326553895,1715105603960,-500.0,0.00021369,2]
[326553896,1715105603971,-500.0,0.00021369,2]
[326553897,1715105603981,-909.47,0.00021369,2]
[326553898,1715105603992,-600.34,0.00021369,2]
[326553899,1715105604004,-619.98,0.00021369,2]
[326553900,1715105604015,-500.0,0.00021369,2]
[326553901,1715105604025,-500.0,0.00021369,2]
[326553902,1715105604035,-512.88,0.00021369,2]
[326553903,1715105604046,-500.0,0.00021369,2]
[326553904,1715105604058,-500.0,0.00021369,2]
[326553905,1715105604070,-500.0,0.00021369,2]
[326553906,1715105604081,-502.72,0.00021369,2]
[326553907,1715105604091,-500.0,0.00021369,2]
[326553908,1715105604103,-608.4,0.00021369,2]
[326553909,1715105604113,-775.54,0.00021369,2]
[326553910,1715105604124,-635.25,0.00021369,2]
[326553911,1715105604134,-744.29,0.00021369,2]
[326553912,1715105604144,-500.0,0.00021369,2]
[326553913,1715105604155,-1234.34,0.00021369,2]
[326553914,1715105604166,-947.66,0.00021369,2]
[326553915,1715105604175,-996.04,0.00021369,2]
[326553916,1715105604186,-500.0,0.00021369,2]
[326553917,1715105604197,-675.56,0.00021369,2]
[326553918,1715105604207,-500.0,0.00021369,2]
[326553919,1715105604217,-500.0,0.00021369,2]
[326553920,1715105604228,-2194.28,0.00021369,2]
[326553921,1715105604238,-500.0,0.00021369,2]
[326553922,1715105604248,-500.0,0.00021369,2]
[326553923,1715105604258,-500.0,0.00021369,2]
[326553924,1715105604268,-603.04,0.00021369,2]
[326553925,1715105604279,-1659.65,0.00021369,2]
[326553926,1715105604289,-983.79,0.00021369,2]
[326553927,1715105604299,-500.0,0.00021369,2]
[326553928,1715105604310,-880.18,0.00021369,2]
[326553929,1715105604319,-1117.76,0.00021369,2]
[326553930,1715105604330,-617.76,0.00021369,2]
[326553931,1715105604340,-320.19665244,0.00021369,2]
[326553932,1715105604618,-500.0,0.00021369,2]
[326553933,1715105604629,-1567.91,0.00021369,2]
[326553934,1715105604640,-666.96,0.00021369,2]
[326553935,1715105604650,-500.0,0.00021369,2]
[326553936,1715105604660,-2152.69,0.00021369,2]
[326553937,1715105604670,-896.53,0.00021369,2]
[326553938,1715105604680,-604.85,0.00021369,2]
[326553939,1715105604690,-500.0,0.00021369,2]
[326553940,1715105604700,-1115.16,0.00021369,2]
[326553941,1715105604711,-500.0,0.00021369,2]
[326553942,1715105604722,-500.0,0.00021369,2]
[326553943,1715105604732,-622.4,0.00021369,2]
[326553944,1715105604743,-500.0,0.00021369,2]
[326553945,1715105604753,-1145.35,0.00021369,2]
[326553946,1715105604764,-2862.89,0.00021369,2]
[326553947,1715105604775,-938.24,0.00021369,2]
[326553948,1715105604784,-917.06,0.00021369,2]
[326553949,1715105604795,-500.0,0.00021369,2]
[326553950,1715105604806,-501.99,0.00021369,2]
[326553951,1715105604816,-500.0,0.00021369,2]
[326553952,1715105604827,-599.9,0.00021369,2]
[326553953,1715105604838,-663.53,0.00021369,2]
[326553954,1715105604850,-783.84,0.00021369,2]
[326553955,1715105604860,-500.0,0.00021369,2]
[326553956,1715105604870,-500.0,0.00021369,2]
[326553957,1715105604882,-654.08,0.00021369,2]
[326553958,1715105604892,-679.25,0.00021369,2]
[326553959,1715105604903,-500.0,0.00021369,2]
[326553960,1715105604913,-720.33,0.00021369,2]
[326553961,1715105604924,-770.79,0.00021369,2]
[326553962,1715105604934,-1458.07,0.00021369,2]
[326553963,1715105604945,-1206.99,0.00021369,2]
[326553964,1715105604955,-729.57,0.00021369,2]
[326553965,1715105604966,-633.11,0.00021369,2]
[326553966,1715105604976,-500.0,0.00021369,2]
[326553967,1715105604986,-500.0,0.00021369,2]
[326553968,1715105604997,-901.99,0.00021369,2]
[326553969,1715105605008,-2291.75,0.00021369,2]
[326553970,1715105605018,-500.0,0.00021369,2]
[326553971,1715105605029,-786.7,0.00021369,2]
[326553972,1715105605039,-874.1,0.00021369,2]
[326553973,1715105605049,-1498.69,0.00021369,2]
[326553974,1715105605060,-1025.17,0.00021369,2]
[326553975,1715105605070,-500.0,0.00021369,2]
[326553976,1715105605080,-500.0,0.00021369,2]
[326553977,1715105605091,-1119.86,0.00021369,2]
[326553978,1715105605103,-866.47,0.00021369,2]
[326553979,1715105605113,-500.0,0.00021369,2]
[326553980,1715105605125,-500.0,0.00021369,2]
[326553981,1715105605135,-789.26,0.00021369,2]
[326553982,1715105605147,-500.0,0.00021369,2]
[326553983,1715105605159,-500.0,0.00021369,2]
[326553984,1715105605170,-500.0,0.00021369,2]
[326553985,1715105605180,-500.0,0.00021369,2]
[326553986,1715105605191,-1246.83,0.00021369,2]
[326553987,1715105605202,-602.95,0.00021369,2]
[326553988,1715105605211,-628.97,0.00021369,2]
[326553989,1715105605222,-578.54,0.00021369,2]
[326553990,1715105605232,-500.0,0.00021369,2]
[326553991,1715105605243,-500.0,0.00021369,2]
[326553992,1715105605253,-850.08,0.00021369,2]
[326553993,1715105605264,-500.0,0.00021369,2]
[326553994,1715105605275,-857.63,0.00021369,2]
[326553995,1715105605285,-1237.72,0.00021369,2]
[326553996,1715105605296,-1373.85,0.00021369,2]
[326553997,1715105605307,-1020.3,0.00021369,2]
[326553998,1715105605317,-500.0,0.00021369,2]
[326553999,1715105605326,-514.16,0.00021369,2]
[326554000,1715105605337,-1646.07,0.00021369,2]
[326554001,1715105605347,-2048.87,0.00021369,2]
[326554002,1715105605356,-500.0,0.00021369,2]
[326554003,1715105605367,-539.47,0.00021369,2]
[326554004,1715105605377,-1036.58,0.00021369,2]
[326554005,1715105605387,-1252.57,0.00021369,2]
[326554006,1715105605398,-576.65012917,0.00021369,2]
[326554007,1715105605408,-665.98,0.00021369,2]
[326554008,1715105605419,-6014.47,0.00021369,2]
[326554009,1715105605429,-500.0,0.00021369,2]
[326554010,1715105605439,-1013.84,0.00021369,2]
[326554011,1715105605450,-150.0,0.00021369,2]
[326554012,1715105605460,-500.0,0.00021369,2]
[326554013,1715105605471,-500.0,0.00021369,2]
[326554014,1715105605481,-1038.38,0.00021369,2]
[326554015,1715105605492,-11885.09,0.00021369,2]
[326554016,1715105605502,-531.24,0.00021369,2]
[326554017,1715105605519,-500.0,0.00021369,2]
[326554018,1715105605531,-519.72,0.00021369,2]
[326554019,1715105605548,-500.0,0.00021369,2]
[326554020,1715105605558,-500.0,0.00021369,2]
[326554021,1715105605569,-500.0,0.00021369,2]
[326554022,1715105605580,-500.0,0.00021369,2]
[326554023,1715105605590,-7456.46,0.00021369,2]
[326554024,1715105605601,-500.0,0.00021369,2]
[326554025,1715105605612,-8356.91,0.00021369,2]
[326554026,1715105605622,-1305.53,0.00021369,2]
[326554027,1715105605633,-785.17,0.00021369,2]
[326554028,1715105605644,-500.0,0.00021369,2]
[326554029,1715105605654,-958.49,0.00021369,2]
[326554030,1715105605664,-762.88,0.00021369,2]
[326554031,1715105605675,-2572.94,0.00021369,2]
[326554032,1715105605686,-500.0,0.00021369,2]
[326554033,1715105605697,-790.81,0.00021369,2]
[326554034,1715105605708,-513.88,0.00021369,2]
[326554035,1715105605718,-896.68,0.00021369,2]
[326554036,1715105605728,-500.0,0.00021369,2]
[326554037,1715105605739,-500.0,0.00021369,2]
[326554038,1715105605749,-2589.73,0.00021369,2]
[326554039,1715105605759,-544.84,0.00021369,2]
[326554040,1715105605770,-221.87830559,0.00021369,2]
[326554041,1715105605780,-500.0,0.00021369,2]
[326554042,1715105605790,-1985.12,0.00021369,2]
[326554043,1715105605800,-500.0,0.00021369,2]
[326554044,1715105605810,-500.0,0.00021369,2]
[326554045,1715105605821,-1258.11,0.00021369,2]
[326554046,1715105605832,-1700.29,0.00021369,2]
[326554047,1715105605842,-4651.14,0.00021369,2]
[326554048,1715105605853,-500.0,0.00021369,2]
[326554049,1715105605864,-500.0,0.00021369,2]
[326554050,1715105605874,-500.0,0.00021369,2]
[326554051,1715105605885,-676.07,0.00021369,2]
[326554052,1715105605899,-959.08,0.00021369,2]
[326554053,1715105605910,-734.9,0.00021369,2]
[326554054,1715105605921,-500.0,0.00021369,2]
[326554055,1715105605932,-500.0,0.00021369,2]
[326554056,1715105605942,-698.7,0.00021369,2]
[326554057,1715105605953,-663.69,0.00021369,2]
[326554058,1715105605963,-660.1,0.00021369,2]
[326554059,1715105605974,-735.96,0.00021369,2]
[326554060,1715105605984,-8060.34,0.00021369,2]
[326554061,1715105605995,-1109.96,0.00021369,2]
[326554062,1715105606006,-2834.12,0.00021369,2]
[326554063,1715105606016,-20091.28,0.00021369,2]
[326554064,1715105606027,-14442.67,0.00021369,2]
[326554065,1715105606037,-1349.78,0.00021369,2]
[326554066,1715105606048,-1229.5,0.00021369,2]
[326554067,1715105606059,-998.22,0.00021369,2]
[326554068,1715105606069,-634.95249152,0.00021369,2]
[326554069,1715105606079,-657.39,0.00021369,2]
[326554070,1715105606090,-500.0,0.00021369,2]
[326554071,1715105606101,-500.0,0.00021369,2]
[326554072,1715105606110,-1555.88,0.00021369,2]
[326554073,1715105606121,-500.0,0.00021369,2]
[326554074,1715105606132,-2045.92,0.00021369,2]
[326554075,1715105606143,-733.48,0.00021369,2]
[326554076,1715105606154,-2381.36,0.00021369,2]
[326554077,1715105606165,-44695.36,0.00021369,2]
[326554078,1715105606176,-500.0,0.00021369,2]
[326554079,1715105606186,-500.0,0.00021369,2]
[326554080,1715105606197,-500.0,0.00021369,2]
[326554081,1715105606208,-1025.11,0.00021369,2]
[326554082,1715105606218,-500.0,0.00021369,2]
[326554083,1715105606229,-1880.09,0.00021369,2]
[326554084,1715105606239,-1066.97,0.00021369,2]
[326554085,1715105606251,-1387.28,0.00021369,2]
[326554086,1715105606262,-500.0,0.00021369,2]
[326554087,1715105606273,-2096.8,0.00021369,2]
[326554088,1715105606283,-575.88,0.00021369,2]
[326554089,1715105606293,-500.0,0.00021369,2]